[Event "Paul Kerese Mälestusfestival 2022 Kiirturniir"]
[Site "Pärnu, Estonia Resort Hotel & Spa"]
[Date "????.??.??"]
[Round "3.3"]
[White "Maiorov, Nikita"]
[Black "Heinmets, Tõnu"]
[Result "1/2-1/2"]
[TimeControl "15 minutit partiile + 3 sek käigule"]
[WhiteTitle "GM"]
[WhiteElo "2431"]
[BlackElo "1993"]

1. d4 {[%clk 00:12:41]} {[%emt 00:02:24]} Nf6 {[%clk 00:15:05]} {[%emt
00:00:02]} 2. c4 {[%clk 00:12:35]} {[%emt 00:00:09]} d6 {[%clk 00:15:05]}
{[%emt 00:00:02]} 3. Nf3 {[%clk 00:12:34]} {[%emt 00:00:04]} Nbd7 {[%clk
00:15:07]} {[%emt 00:00:02]} 4. Nc3 {[%clk 00:12:35]} {[%emt 00:00:01]} e5
{[%clk 00:15:08]} {[%emt 00:00:01]} 5. g3 {[%clk 00:12:31]} {[%emt 00:00:07]}
g6 {[%clk 00:15:06]} {[%emt 00:00:06]} 6. Bg2 {[%clk 00:12:31]} {[%emt
00:00:02]} Bg7 {[%clk 00:15:07]} {[%emt 00:00:02]} 7. O-O {[%clk 00:12:31]}
{[%emt 00:00:04]} O-O {[%clk 00:15:08]} {[%emt 00:00:02]} 8. e4 {[%clk
00:12:27]} {[%emt 00:00:07]} exd4 {[%clk 00:14:35]} {[%emt 00:00:36]} 9. Nxd4
{[%clk 00:12:25]} {[%emt 00:00:05]} Re8 {[%clk 00:14:30]} {[%emt 00:00:09]} 10.
h3 {[%clk 00:12:16]} {[%emt 00:00:12]} Nc5 {[%clk 00:12:16]} {[%emt 00:02:18]}
11. Re1 {[%clk 00:12:15]} {[%emt 00:00:03]} c6 {[%clk 00:12:07]} {[%emt
00:00:12]} 12. Bf4 {[%clk 00:11:50]} {[%emt 00:00:27]} Ne6 {[%clk 00:12:07]}
{[%emt 00:00:04]} 13. Be3 {[%clk 00:11:24]} {[%emt 00:00:28]} Nxd4 {[%clk
00:11:43]} {[%emt 00:00:28]} 14. Bxd4 {[%clk 00:11:25]} {[%emt 00:00:02]} Be6
{[%clk 00:11:44]} {[%emt 00:00:02]} 15. Qd3 {[%clk 00:11:17]} {[%emt 00:00:10]}
a6 {[%clk 00:10:42]} {[%emt 00:01:06]} 16. b3 {[%clk 00:08:17]} {[%emt
00:03:02]} Qa5 {[%clk 00:08:07]} {[%emt 00:02:38]} 17. Ne2 {[%clk 00:07:50]}
{[%emt 00:00:30]} d5 {[%clk 00:07:15]} {[%emt 00:00:55]} 18. cxd5 {[%clk
00:07:20]} {[%emt 00:00:32]} cxd5 {[%clk 00:07:11]} {[%emt 00:00:07]} 19. e5
{[%clk 00:07:20]} {[%emt 00:00:03]} Ne4 {[%clk 00:06:52]} {[%emt 00:00:23]} 20.
Qe3 {[%clk 00:07:05]} {[%emt 00:00:18]} Rac8 {[%clk 00:06:03]} {[%emt
00:00:52]} 21. f3 {[%clk 00:04:51]} {[%emt 00:02:16]} Nc5 {[%clk 00:06:04]}
{[%emt 00:00:03]} 22. a3 {[%clk 00:04:33]} {[%emt 00:00:21]} Nd7 {[%clk
00:06:06]} {[%emt 00:00:01]} 23. b4 {[%clk 00:04:31]} {[%emt 00:00:04]} Qd8
{[%clk 00:05:49]} {[%emt 00:00:20]} 24. f4 {[%clk 00:03:47]} {[%emt 00:00:47]}
h5 {[%clk 00:05:51]} {[%emt 00:00:02]} 25. Qd3 {[%clk 00:03:41]} {[%emt
00:00:08]} Bf5 {[%clk 00:05:47]} {[%emt 00:00:08]} 26. Qb3 {[%clk 00:03:39]}
{[%emt 00:00:05]} Nb6 {[%clk 00:05:31]} {[%emt 00:00:19]} 27. Kh2 {[%clk
00:03:38]} {[%emt 00:00:04]} Nc4 {[%clk 00:05:25]} {[%emt 00:00:09]} 28. Rad1
{[%clk 00:03:38]} {[%emt 00:00:02]} Be6 {[%clk 00:03:07]} {[%emt 00:02:22]} 29.
Bf2 {[%clk 00:03:37]} {[%emt 00:00:04]} b5 {[%clk 00:02:56]} {[%emt 00:00:14]}
30. Nd4 {[%clk 00:03:38]} {[%emt 00:00:02]} Qe7 {[%clk 00:02:49]} {[%emt
00:00:10]} 31. Re2 {[%clk 00:03:24]} {[%emt 00:00:17]} Red8 {[%clk 00:02:35]}
{[%emt 00:00:17]} 32. Qd3 {[%clk 00:03:25]} {[%emt 00:00:02]} Qe8 {[%clk
00:02:13]} {[%emt 00:00:26]} 33. Bg1 {[%clk 00:03:06]} {[%emt 00:00:22]} Rc7
{[%clk 00:02:11]} {[%emt 00:00:06]} 34. Rf1 {[%clk 00:03:07]} {[%emt 00:00:01]}
Rdc8 {[%clk 00:02:11]} {[%emt 00:00:03]} 35. f5 {[%clk 00:02:08]} {[%emt
00:01:02]} gxf5 {[%clk 00:01:40]} {[%emt 00:00:34]} 36. Nxf5 {[%clk 00:01:52]}
{[%emt 00:00:19]} Nxe5 {[%clk 00:01:41]} {[%emt 00:00:02]} 37. Nxg7 {[%clk
00:01:31]} {[%emt 00:00:23]} Nxd3 {[%clk 00:01:41]} {[%emt 00:00:03]} 38. Nxe8
{[%clk 00:01:33]} {[%emt 00:00:01]} Rxe8 {[%clk 00:01:37]} {[%emt 00:00:08]} 39.
Bxd5 {[%clk 00:01:30]} {[%emt 00:00:06]} Nc1 {[%clk 00:01:03]} {[%emt
00:00:36]} 40. Re3 {[%clk 00:01:16]} {[%emt 00:00:17]} Rd8 {[%clk 00:00:42]}
{[%emt 00:00:26]} 41. Bxe6 {[%clk 00:01:02]} {[%emt 00:00:17]} Rc2+ {[%clk
00:00:34]} {[%emt 00:00:10]} 42. Rf2 {[%clk 00:00:52]} {[%emt 00:00:12]} Rxf2+
{[%clk 00:00:17]} {[%emt 00:00:21]} 43. Bxf2 {[%clk 00:00:55]} fxe6 {[%clk
00:00:19]} {[%emt 00:00:01]} 44. Rxe6 {[%clk 00:00:32]} {[%emt 00:00:26]} Rd2
{[%clk 00:00:07]} {[%emt 00:00:15]} 45. Kg1 {[%clk 00:00:30]} {[%emt 00:00:03]}
Nd3 {[%clk 00:00:07]} {[%emt 00:00:05]} 46. Be3 {[%clk 00:00:15]} {[%emt
00:00:17]} Re2 {[%clk 00:00:05]} {[%emt 00:00:05]} 47. Kf1 {[%clk 00:00:13]}
{[%emt 00:00:05]} Rh2 {[%clk 00:00:06]} {[%emt 00:00:02]} 48. Bg1 {[%clk
00:00:12]} {[%emt 00:00:04]} Ra2 {[%clk 00:00:08]} {[%emt 00:00:02]} 49. Rxa6
{[%clk 00:00:12]} {[%emt 00:00:04]} Kf7 {[%clk 00:00:07]} {[%emt 00:00:03]} 50.
Ra7+ {[%clk 00:00:13]} {[%emt 00:00:02]} Ke6 {[%clk 00:00:08]} {[%emt
00:00:01]} 51. Be3 {[%clk 00:00:11]} {[%emt 00:00:04]} Kf5 {[%clk 00:00:10]} 52.
Rf7+ {[%clk 00:00:12]} {[%emt 00:00:03]} Ke4 {[%clk 00:00:13]} 53. Bf2 {[%clk
00:00:08]} {[%emt 00:00:06]} Rxa3 {[%clk 00:00:14]} {[%emt 00:00:02]} 54. Re7+
{[%clk 00:00:10]} {[%emt 00:00:01]} Kd5 {[%clk 00:00:16]} {[%emt 00:00:02]} 55.
Re3 {[%clk 00:00:09]} {[%emt 00:00:03]} Kc4 {[%clk 00:00:17]} {[%emt 00:00:02]}
56. Re4+ {[%clk 00:00:12]} Kc3 {[%clk 00:00:19]} {[%emt 00:00:01]} 57. g4
{[%clk 00:00:11]} {[%emt 00:00:04]} Ra1+ {[%clk 00:00:20]} {[%emt 00:00:01]} 58.
Kg2 {[%clk 00:00:12]} Ra2 {[%clk 00:00:22]} {[%emt 00:00:02]} 59. gxh5 {[%clk
00:00:08]} {[%emt 00:00:07]} Rxf2+ {[%clk 00:00:24]} {[%emt 00:00:01]} 60. Kg3
{[%clk 00:00:10]} Rf1 {[%clk 00:00:25]} {[%emt 00:00:02]} 61. h6 {[%clk
00:00:11]} {[%emt 00:00:02]} Rg1 {[%clk 00:00:27]} {[%emt 00:00:02]} 62. Kh4
{[%clk 00:00:12]} Rg8 {[%clk 00:00:28]} {[%emt 00:00:02]} 63. Kh5 {[%clk
00:00:12]} {[%emt 00:00:03]} Nf2 {[%clk 00:00:29]} {[%emt 00:00:02]} 64. h7
{[%emt 00:00:05]} Rh8 {[%clk 00:00:30]} 65. Re7 {[%clk 00:00:13]} {[%emt
00:00:02]} Nxh3 {[%clk 00:00:31]} {[%emt 00:00:02]} 66. Rc7+ Kxb4 {[%clk
00:00:33]} 67. Kg6 {[%clk 00:00:11]} {[%emt 00:00:02]} Nf4+ {[%clk 00:00:32]}
{[%emt 00:00:05]} 68. Kg7 {[%clk 00:00:13]} {[%emt 00:00:02]} Rd8 {[%clk
00:00:23]} {[%emt 00:00:11]} 69. Re7 {[%clk 00:00:13]} {[%emt 00:00:05]} Nh5+
{[%clk 00:00:23]} {[%emt 00:00:02]} 70. Kg6 {[%clk 00:00:14]} {[%emt 00:00:01]}
Nf4+ {[%clk 00:00:25]} {[%emt 00:00:01]} 71. Kg7 {[%clk 00:00:16]} Nd5 {[%clk
00:00:24]} {[%emt 00:00:04]} 72. Re5 {[%clk 00:00:16]} {[%emt 00:00:03]} Kc4
{[%clk 00:00:23]} {[%emt 00:00:05]} 73. h8=Q {[%clk 00:00:11]} {[%emt
00:00:08]} Rxh8 {[%clk 00:00:25]} {[%emt 00:00:01]} 74. Kxh8 {[%clk 00:00:13]}
b4 {[%clk 00:00:27]} {[%emt 00:00:01]} 75. Re4+ {[%clk 00:00:15]} Kd3 {[%clk
00:00:29]} {[%emt 00:00:02]} 76. Rxb4 {[%clk 00:00:17]} {[%emt 00:00:01]} Nxb4
{[%emt 00:00:02]} 1/2-1/2

[Event "Paul Kerese Mälestusfestival 2022 Kiirturniir"]
[Site "Pärnu, Estonia Resort Hotel & Spa"]
[Date "????.??.??"]
[Round "3.4"]
[White "Agafonov, Yuri"]
[Black "Kantans, Toms"]
[Result "1-0"]
[TimeControl "15 minutit partiile + 3 sek käigule"]
[BlackTitle "GM"]
[WhiteElo "2018"]
[BlackElo "2422"]

1. d4 {[%clk 00:15:03]} {[%emt 00:00:02]} Nf6 {[%clk 00:15:05]} {[%emt
00:00:02]} 2. Bg5 {[%clk 00:15:05]} {[%emt 00:00:01]} d5 {[%clk 00:14:59]}
{[%emt 00:00:09]} 3. e3 {[%clk 00:14:55]} {[%emt 00:00:13]} Nbd7 {[%clk
00:14:40]} {[%emt 00:00:22]} 4. f4 {[%clk 00:14:25]} {[%emt 00:00:33]} h6
{[%clk 00:14:28]} {[%emt 00:00:15]} 5. Bh4 {[%clk 00:14:26]} {[%emt 00:00:02]}
c5 {[%clk 00:14:11]} {[%emt 00:00:20]} 6. c3 {[%clk 00:14:28]} {[%emt
00:00:01]} g5 {[%clk 00:13:41]} {[%emt 00:00:33]} 7. Bg3 {[%clk 00:13:30]}
{[%emt 00:01:01]} Ne4 {[%clk 00:13:36]} {[%emt 00:00:09]} 8. Nd2 {[%clk
00:13:23]} {[%emt 00:00:09]} Nxg3 {[%clk 00:12:16]} {[%emt 00:01:23]} 9. hxg3
{[%clk 00:13:25]} {[%emt 00:00:01]} Qb6 {[%clk 00:11:50]} {[%emt 00:00:30]} 10.
Qb3 {[%clk 00:10:30]} {[%emt 00:02:58]} Qg6 {[%clk 00:10:50]} {[%emt 00:01:02]}
11. O-O-O {[%clk 00:10:11]} {[%emt 00:00:22]} e6 {[%clk 00:10:46]} {[%emt
00:00:08]} 12. Ngf3 {[%clk 00:10:06]} {[%emt 00:00:08]} Be7 {[%clk 00:10:10]}
{[%emt 00:00:39]} 13. Ne5 {[%clk 00:08:51]} {[%emt 00:01:17]} Nxe5 {[%clk
00:10:10]} {[%emt 00:00:03]} 14. dxe5 {[%clk 00:08:19]} {[%emt 00:00:36]} O-O
{[%clk 00:09:58]} {[%emt 00:00:15]} 15. Nf3 {[%clk 00:07:22]} {[%emt 00:00:59]}
g4 {[%clk 00:09:27]} {[%emt 00:00:35]} 16. Nd2 {[%clk 00:06:30]} {[%emt
00:00:55]} Kg7 {[%clk 00:07:40]} {[%emt 00:01:50]} 17. Be2 {[%clk 00:06:15]}
{[%emt 00:00:18]} f5 {[%clk 00:06:14]} {[%emt 00:01:30]} 18. exf6+ {[%clk
00:05:22]} {[%emt 00:00:56]} Bxf6 {[%clk 00:06:15]} {[%emt 00:00:01]} 19. e4
{[%clk 00:05:24]} c4 {[%clk 00:05:32]} {[%emt 00:00:47]} 20. Qc2 {[%clk
00:05:02]} {[%emt 00:00:25]} b5 {[%clk 00:05:21]} {[%emt 00:00:14]} 21. e5
{[%clk 00:04:04]} {[%emt 00:01:00]} Be7 {[%clk 00:05:10]} {[%emt 00:00:14]} 22.
Qxg6+ {[%clk 00:04:05]} {[%emt 00:00:03]} Kxg6 {[%clk 00:05:12]} {[%emt
00:00:01]} 23. Bxg4 {[%clk 00:04:06]} {[%emt 00:00:02]} b4 {[%clk 00:05:04]}
{[%emt 00:00:11]} 24. Nf3 {[%clk 00:04:00]} {[%emt 00:00:09]} Rb8 {[%clk
00:04:49]} {[%emt 00:00:19]} 25. Nd4 {[%clk 00:02:34]} {[%emt 00:01:28]} bxc3
{[%clk 00:03:42]} {[%emt 00:01:10]} 26. bxc3 {[%clk 00:02:10]} {[%emt
00:00:27]} Ba3+ {[%clk 00:03:44]} {[%emt 00:00:01]} 27. Kd2 {[%clk 00:02:01]}
{[%emt 00:00:12]} Rb2+ {[%clk 00:03:46]} {[%emt 00:00:01]} 28. Ke3 {[%clk
00:01:54]} {[%emt 00:00:10]} Bc5 {[%clk 00:02:01]} {[%emt 00:01:48]} 29. Rd2
{[%clk 00:00:59]} {[%emt 00:00:58]} Rb6 {[%clk 00:01:46]} {[%emt 00:00:19]} 30.
Kf3 {[%clk 00:00:43]} {[%emt 00:00:19]} Bd7 {[%clk 00:01:43]} {[%emt 00:00:07]}
31. Nxe6 {[%clk 00:00:09]} {[%emt 00:00:36]} Bxe6 {[%clk 00:01:29]} {[%emt
00:00:17]} 32. Bxe6 {[%clk 00:00:11]} {[%emt 00:00:01]} Rxe6 {[%clk 00:01:31]}
{[%emt 00:00:01]} 33. Rxd5 {[%clk 00:00:13]} {[%emt 00:00:01]} Rc6 {[%clk
00:00:37]} {[%emt 00:00:57]} 34. g4 {[%clk 00:00:13]} {[%emt 00:00:02]} Rf7
{[%clk 00:00:23]} {[%emt 00:00:18]} 35. Ke4 {[%clk 00:00:14]} {[%emt 00:00:02]}
Kg7 {[%clk 00:00:16]} {[%emt 00:00:10]} 36. f5 {[%clk 00:00:13]} {[%emt
00:00:03]} Bf8 {[%clk 00:00:06]} {[%emt 00:00:13]} 37. Rb1 {[%clk 00:00:12]}
{[%emt 00:00:05]} Rfc7 {[%clk 00:00:07]} {[%emt 00:00:03]} 38. Rb8 {[%clk
00:00:12]} {[%emt 00:00:02]} Rb6 {[%clk 00:00:06]} {[%emt 00:00:04]} 39. Rxb6
{[%clk 00:00:12]} {[%emt 00:00:02]} axb6 40. e6 {[%clk 00:00:14]} {[%emt
00:00:01]} Be7 {[%clk 00:00:08]} {[%emt 00:00:04]} 41. Rd7 {[%clk 00:00:14]}
{[%emt 00:00:03]} Rxd7 {[%clk 00:00:07]} {[%emt 00:00:04]} 42. exd7 {[%clk
00:00:15]} Kf7 {[%clk 00:00:05]} {[%emt 00:00:05]} 43. Kd5 {[%clk 00:00:18]}
Bd8 {[%clk 00:00:07]} 44. Kxc4 {[%clk 00:00:19]} {[%emt 00:00:02]} Ke7 {[%clk
00:00:09]} {[%emt 00:00:01]} 45. Kd5 {[%clk 00:00:20]} {[%emt 00:00:01]} Kxd7
{[%clk 00:00:12]} 46. Ke5 {[%clk 00:00:22]} Ke7 {[%clk 00:00:10]} {[%emt
00:00:04]} 47. c4 {[%clk 00:00:23]} {[%emt 00:00:02]} Kf7 {[%clk 00:00:09]}
{[%emt 00:00:04]} 48. Kd5 {[%clk 00:00:22]} {[%emt 00:00:04]} Kf6 {[%clk
00:00:05]} {[%emt 00:00:07]} 49. a4 {[%clk 00:00:24]} Kg5 {[%clk 00:00:06]}
{[%emt 00:00:02]} 50. Ke6 {[%clk 00:00:23]} {[%emt 00:00:04]} Kxg4 {[%clk
00:00:04]} {[%emt 00:00:05]} 51. f6 {[%clk 00:00:22]} {[%emt 00:00:04]} 1-0

[Event "Paul Kerese Mälestusfestival 2022 Kiirturniir"]
[Site "Pärnu, Estonia Resort Hotel & Spa"]
[Date "????.??.??"]
[Round "3.5"]
[White "Chukavin, Kirill"]
[Black "Tsiganova, Monika"]
[Result "1-0"]
[TimeControl "15 minutit partiile + 3 sek käigule"]
[WhiteTitle "FM"]
[BlackTitle "WIM"]
[WhiteElo "2418"]
[BlackElo "1906"]

1. e4 {[%clk 00:15:03]} {[%emt 00:00:01]} c5 {[%clk 00:15:05]} {[%emt
00:00:02]} 2. Nf3 {[%clk 00:15:04]} {[%emt 00:00:02]} d6 {[%clk 00:15:07]}
{[%emt 00:00:02]} 3. d4 {[%clk 00:15:06]} cxd4 {[%clk 00:15:08]} {[%emt
00:00:03]} 4. Nxd4 {[%clk 00:15:06]} {[%emt 00:00:02]} Nf6 {[%clk 00:15:10]}
{[%emt 00:00:01]} 5. Nc3 {[%clk 00:15:08]} {[%emt 00:00:02]} a6 {[%clk
00:15:11]} {[%emt 00:00:01]} 6. g3 {[%clk 00:15:08]} {[%emt 00:00:03]} e5
{[%clk 00:15:04]} {[%emt 00:00:11]} 7. Nde2 {[%clk 00:15:06]} {[%emt 00:00:04]}
Be6 {[%clk 00:14:58]} {[%emt 00:00:09]} 8. Bg2 {[%clk 00:15:00]} {[%emt
00:00:10]} Be7 {[%clk 00:14:56]} {[%emt 00:00:04]} 9. a4 {[%clk 00:14:51]}
{[%emt 00:00:12]} O-O {[%clk 00:14:51]} {[%emt 00:00:07]} 10. O-O {[%clk
00:14:50]} {[%emt 00:00:05]} Nbd7 {[%clk 00:14:20]} {[%emt 00:00:34]} 11. h3
{[%clk 00:14:32]} {[%emt 00:00:21]} Rc8 {[%clk 00:14:16]} {[%emt 00:00:07]} 12.
Be3 {[%clk 00:14:20]} {[%emt 00:00:15]} Qa5 {[%clk 00:13:39]} {[%emt 00:00:41]}
13. Qd2 {[%clk 00:14:04]} {[%emt 00:00:19]} Qb4 {[%clk 00:12:17]} {[%emt
00:01:24]} 14. g4 {[%clk 00:09:59]} {[%emt 00:04:08]} Nb6 {[%clk 00:11:47]}
{[%emt 00:00:33]} 15. b3 {[%clk 00:08:44]} {[%emt 00:01:18]} d5 {[%clk
00:10:39]} {[%emt 00:01:11]} 16. Bxb6 {[%clk 00:06:32]} {[%emt 00:02:15]} d4
{[%clk 00:10:18]} {[%emt 00:00:24]} 17. a5 {[%clk 00:05:46]} {[%emt 00:00:49]}
dxc3 {[%clk 00:10:04]} {[%emt 00:00:17]} 18. Qe3 {[%clk 00:05:06]} {[%emt
00:00:44]} Bd7 {[%clk 00:08:04]} {[%emt 00:02:03]} 19. Ng3 {[%clk 00:04:10]}
{[%emt 00:00:59]} h6 {[%clk 00:06:45]} {[%emt 00:01:22]} 20. Nf5 {[%clk
00:02:50]} {[%emt 00:01:23]} Bc5 {[%clk 00:06:29]} {[%emt 00:00:18]} 21. Bxc5
{[%clk 00:02:43]} {[%emt 00:00:11]} Qxc5 {[%clk 00:06:28]} {[%emt 00:00:03]} 22.
Rfd1 {[%clk 00:02:26]} {[%emt 00:00:20]} Bxf5 {[%clk 00:05:49]} {[%emt
00:00:43]} 23. exf5 {[%clk 00:01:50]} {[%emt 00:00:40]} Qxe3 {[%clk 00:04:46]}
{[%emt 00:01:06]} 24. fxe3 {[%clk 00:01:51]} {[%emt 00:00:01]} e4 {[%clk
00:04:46]} {[%emt 00:00:02]} 25. Rd4 {[%clk 00:01:44]} {[%emt 00:00:11]} Rfe8
{[%clk 00:04:40]} {[%emt 00:00:09]} 26. Raa4 {[%clk 00:01:17]} {[%emt
00:00:30]} Rc5 {[%clk 00:04:07]} {[%emt 00:00:36]} 27. Bxe4 {[%clk 00:01:18]}
{[%emt 00:00:02]} Rce5 {[%clk 00:02:00]} {[%emt 00:02:10]} 28. Bxb7 {[%clk
00:01:13]} {[%emt 00:00:09]} Rxe3 {[%clk 00:02:02]} 29. Bxa6 {[%clk 00:00:50]}
{[%emt 00:00:26]} Rxh3 {[%clk 00:02:02]} {[%emt 00:00:02]} 30. Rd3 {[%clk
00:00:45]} {[%emt 00:00:09]} Re1+ {[%clk 00:01:35]} {[%emt 00:00:30]} 31. Kg2
{[%clk 00:00:29]} {[%emt 00:00:19]} Rhh1 {[%clk 00:01:36]} {[%emt 00:00:02]} 32.
Rxc3 {[%clk 00:00:15]} {[%emt 00:00:17]} Rhg1+ {[%clk 00:01:29]} {[%emt
00:00:10]} 33. Kf2 {[%clk 00:00:16]} {[%emt 00:00:02]} Rc1 {[%clk 00:01:15]}
{[%emt 00:00:17]} 34. Rg3 {[%clk 00:00:10]} {[%emt 00:00:10]} Rgd1 {[%clk
00:01:08]} {[%emt 00:00:09]} 35. Bd3 {[%clk 00:00:11]} {[%emt 00:00:02]} Nd5
{[%clk 00:00:52]} {[%emt 00:00:18]} 36. a6 {[%clk 00:00:10]} {[%emt 00:00:05]}
Rd2+ {[%clk 00:00:41]} {[%emt 00:00:14]} 37. Kf3 {[%clk 00:00:12]} Rxd3+ {[%clk
00:00:19]} {[%emt 00:00:26]} 38. cxd3 {[%clk 00:00:13]} {[%emt 00:00:01]} Nb6
{[%clk 00:00:18]} {[%emt 00:00:05]} 39. a7 {[%clk 00:00:09]} {[%emt 00:00:06]}
Rc8 {[%clk 00:00:19]} {[%emt 00:00:02]} 40. Rb4 {[%clk 00:00:10]} {[%emt
00:00:02]} 1-0

[Event "Paul Kerese Mälestusfestival 2022 Kiirturniir"]
[Site "Pärnu, Estonia Resort Hotel & Spa"]
[Date "????.??.??"]
[Round "3.6"]
[White "Krilovs, Nikolajs"]
[Black "Volodin, Aleksandr"]
[Result "0-1"]
[TimeControl "15 minutit partiile + 3 sek käigule"]
[BlackTitle "GM"]
[WhiteElo "1954"]
[BlackElo "2407"]

1. d4 {[%clk 00:15:03]} {[%emt 00:00:03]} Nf6 {[%clk 00:15:05]} {[%emt
00:00:01]} 2. Nf3 {[%clk 00:15:04]} {[%emt 00:00:02]} e6 {[%clk 00:15:07]}
{[%emt 00:00:01]} 3. c4 {[%clk 00:15:04]} {[%emt 00:00:03]} d5 {[%clk
00:15:09]} {[%emt 00:00:01]} 4. Nc3 {[%clk 00:15:04]} {[%emt 00:00:03]} c6
{[%clk 00:15:12]} 5. e3 {[%clk 00:14:51]} {[%emt 00:00:16]} Nbd7 {[%clk
00:15:14]} {[%emt 00:00:01]} 6. a3 {[%clk 00:13:54]} {[%emt 00:01:00]} Bd6
{[%clk 00:15:08]} {[%emt 00:00:08]} 7. Be2 {[%clk 00:13:39]} {[%emt 00:00:18]}
dxc4 {[%clk 00:15:09]} {[%emt 00:00:03]} 8. Bxc4 {[%clk 00:13:38]} {[%emt
00:00:03]} b5 {[%clk 00:15:11]} 9. Bd3 {[%clk 00:13:34]} {[%emt 00:00:07]} Bb7
{[%clk 00:15:14]} {[%emt 00:00:01]} 10. O-O {[%clk 00:13:25]} {[%emt 00:00:11]}
O-O {[%clk 00:15:05]} {[%emt 00:00:11]} 11. Qe2 {[%clk 00:12:52]} {[%emt
00:00:36]} a6 {[%clk 00:14:53]} {[%emt 00:00:15]} 12. e4 {[%clk 00:12:38]}
{[%emt 00:00:16]} e5 {[%clk 00:14:55]} 13. Bg5 {[%clk 00:12:14]} {[%emt
00:00:29]} Re8 {[%clk 00:14:51]} {[%emt 00:00:08]} 14. Rad1 {[%clk 00:11:56]}
{[%emt 00:00:20]} exd4 {[%clk 00:13:01]} {[%emt 00:01:53]} 15. Nxd4 {[%clk
00:11:52]} {[%emt 00:00:08]} h6 {[%clk 00:12:58]} {[%emt 00:00:06]} 16. Bh4
{[%clk 00:11:18]} {[%emt 00:00:36]} Qc7 {[%clk 00:12:59]} {[%emt 00:00:02]} 17.
Bg3 {[%clk 00:10:43]} {[%emt 00:00:38]} Bxg3 {[%clk 00:12:57]} {[%emt
00:00:05]} 18. hxg3 {[%clk 00:10:44]} {[%emt 00:00:02]} c5 {[%clk 00:12:23]}
{[%emt 00:00:38]} 19. Nf5 {[%clk 00:10:38]} {[%emt 00:00:08]} b4 {[%clk
00:12:09]} {[%emt 00:00:16]} 20. axb4 {[%clk 00:09:47]} {[%emt 00:00:54]} cxb4
{[%clk 00:12:11]} {[%emt 00:00:02]} 21. Na2 {[%clk 00:08:00]} {[%emt 00:01:50]}
Bxe4 {[%clk 00:11:16]} {[%emt 00:00:58]} 22. Bxe4 {[%clk 00:07:37]} {[%emt
00:00:26]} Rxe4 {[%clk 00:11:18]} {[%emt 00:00:02]} 23. Qd2 {[%clk 00:06:43]}
{[%emt 00:00:57]} a5 {[%clk 00:10:44]} {[%emt 00:00:37]} 24. Nc1 {[%clk
00:06:13]} {[%emt 00:00:32]} Nc5 {[%clk 00:08:33]} {[%emt 00:02:14]} 25. Qc2
{[%clk 00:05:25]} {[%emt 00:00:50]} Ne6 {[%clk 00:08:00]} {[%emt 00:00:37]} 26.
Qxc7 {[%clk 00:04:49]} {[%emt 00:00:39]} Nxc7 {[%clk 00:08:01]} {[%emt
00:00:02]} 27. Rd6 {[%clk 00:03:46]} {[%emt 00:01:05]} Ncd5 {[%clk 00:07:50]}
{[%emt 00:00:16]} 28. Nd3 {[%clk 00:03:15]} {[%emt 00:00:33]} a4 {[%clk
00:07:37]} {[%emt 00:00:16]} 29. Nc5 {[%clk 00:02:02]} {[%emt 00:01:16]} Re2
{[%clk 00:07:27]} {[%emt 00:00:13]} 30. Rd1 {[%clk 00:01:36]} {[%emt 00:00:28]}
a3 {[%clk 00:07:23]} {[%emt 00:00:09]} 31. bxa3 {[%clk 00:01:28]} {[%emt
00:00:11]} bxa3 {[%clk 00:07:25]} 32. Nd4 {[%clk 00:01:23]} {[%emt 00:00:07]}
Rb2 {[%clk 00:07:16]} {[%emt 00:00:11]} 33. Ndb3 {[%clk 00:00:34]} {[%emt
00:00:52]} a2 {[%clk 00:07:06]} {[%emt 00:00:14]} 34. R1xd5 {[%clk 00:00:18]}
{[%emt 00:00:19]} Nxd5 {[%clk 00:07:07]} {[%emt 00:00:01]} 35. Rxd5 {[%clk
00:00:20]} {[%emt 00:00:01]} a1=Q+ {[%clk 00:06:37]} {[%emt 00:00:33]} 36. Nxa1
{[%clk 00:00:21]} {[%emt 00:00:02]} Rxa1+ {[%clk 00:06:38]} {[%emt 00:00:02]}
37. Kh2 {[%clk 00:00:22]} {[%emt 00:00:01]} Rxf2 {[%clk 00:06:38]} {[%emt
00:00:03]} 38. Ne4 {[%clk 00:00:19]} {[%emt 00:00:06]} Rc2 {[%clk 00:06:31]}
{[%emt 00:00:10]} 39. Rd8+ {[%clk 00:00:20]} {[%emt 00:00:02]} Kh7 {[%clk
00:06:32]} {[%emt 00:00:01]} 40. Rd7 {[%clk 00:00:19]} {[%emt 00:00:04]} Kg6
{[%clk 00:06:26]} {[%emt 00:00:09]} 41. Rd6+ {[%clk 00:00:21]} {[%emt
00:00:02]} f6 {[%clk 00:06:27]} 42. g4 {[%clk 00:00:16]} {[%emt 00:00:08]} Raa2
{[%clk 00:06:29]} {[%emt 00:00:02]} 0-1